bitfinex/quotes_BTCUSD_20250831
["timestamp","ask_amount","ask_price","bid_price","bid_amount"]
[1756670315004,1.70513527,109130.0,109120.0,0.00514]
[1756670315424,1.70711527,109130.0,109120.0,0.00514]
[1756670315835,2.08672742,109130.0,109120.0,0.00514]
[1756670316301,2.08672742,109130.0,109120.0,0.00614]
[1756670316528,2.07813088,109130.0,109120.0,0.00614]
[1756670316757,2.0545099,109130.0,109120.0,0.00714]
[1756670316957,2.08674645,109130.0,109120.0,0.00714]
[1756670317174,2.08872645,109130.0,109120.0,0.00714]
[1756670317395,2.0887262,109130.0,109120.0,0.00714]
[1756670320287,1.70713405,109130.0,109120.0,0.00714]
[1756670322466,1.67412147,109130.0,109120.0,0.00714]
[1756670322665,1.67412094,109130.0,109120.0,0.00714]
[1756670324144,1.67412054,109130.0,109120.0,0.00714]
[1756670326195,2.05571269,109130.0,109120.0,0.002]
[1756670326411,2.05571269,109130.0,109120.0,0.00714]
[1756670326412,2.08443458,109130.0,109120.0,0.00714]
[1756670326656,1.70284243,109130.0,109120.0,0.00714]
[1756670327836,1.68564985,109130.0,109120.0,0.00714]
[1756670328041,1.70284183,109130.0,109120.0,0.00714]
[1756670332795,1.70284183,109130.0,109120.0,0.002]
[1756670333479,1.70284183,109130.0,109120.0,0.00517]
[1756670338022,1.70284183,109130.0,109120.0,0.002]
[1756670338728,1.67705401,109130.0,109120.0,0.002]
[1756670338947,1.70284499,109130.0,109120.0,0.002]
[1756670339379,1.69424833,109130.0,109120.0,0.002]
[1756670339606,1.70284526,109130.0,109120.0,0.002]
[1756670340312,1.73585784,109130.0,109120.0,0.002]
[1756670340477,1.73585784,109130.0,109120.0,0.00714]
[1756670340887,1.70284526,109130.0,109120.0,0.00714]
[1756670341287,1.73585784,109130.0,109120.0,0.00714]
[1756670342227,1.70713595,109130.0,109120.0,0.00714]
[1756670343319,1.61883963,109130.0,109120.0,0.00714]
[1756670343974,1.61819963,109130.0,109120.0,0.00714]
[1756670345056,1.61819722,109130.0,109120.0,0.00714]
[1756670345833,1.46051722,109130.0,109120.0,0.00714]
[1756670346047,1.61815722,109130.0,109120.0,0.00714]
[1756670348185,1.57364034,109130.0,109120.0,0.00714]
[1756670348395,1.61820267,109130.0,109120.0,0.00714]
[1756670348596,1.59241384,109130.0,109120.0,0.00714]
[1756670348756,1.61820255,109130.0,109120.0,0.00714]
[1756670349161,1.61820271,109130.0,109120.0,0.00714]
[1756670349518,1.61820273,109130.0,109120.0,0.00714]
[1756670350276,1.58519015,109130.0,109120.0,0.00714]
[1756670352346,1.57659397,109130.0,109120.0,0.00714]
[1756670352561,1.58519056,109130.0,109120.0,0.00714]
[1756670356730,1.42755056,109130.0,109120.0,0.00714]
[1756670356928,0.4203474,109130.0,109120.0,0.19042445]
[1756670357125,0.80193955,109130.0,109120.0,0.19042445]
[1756670357335,0.80205955,109130.0,109120.0,0.19042445]
[1756670357527,0.77450155,109130.0,109120.0,0.19042445]
[1756670357732,0.61690155,109130.0,109120.0,0.19042445]
[1756670357907,0.76805442,109130.0,109120.0,0.19042445]
[1756670358233,0.61045442,109130.0,109120.0,0.19042445]
[1756670358383,0.76801442,109130.0,109120.0,0.19042445]
[1756670358628,0.61045442,109130.0,109120.0,0.19042445]
[1756670358823,0.76805442,109130.0,109120.0,0.19042445]
[1756670359259,0.58478676,109130.0,109120.0,0.19042445]
[1756670359463,0.76804142,109130.0,109120.0,0.19042445]
[1756670360338,0.74226529,109130.0,109120.0,0.19042445]
[1756670360639,0.55895763,109130.0,109120.0,0.19042445]
[1756670361250,0.53915215,109130.0,109120.0,0.19042445]
[1756670363005,0.38159215,109130.0,109120.0,0.19042445]
[1756670363211,0.53911215,109130.0,109120.0,0.19042445]
[1756670363415,0.72237981,109130.0,109120.0,0.19042445]
[1756670363882,0.56485981,109130.0,109120.0,0.19042445]
[1756670364091,0.72233981,109130.0,109120.0,0.19042445]
[1756670364557,0.53899215,109130.0,109120.0,0.19042445]
[1756670367206,0.72225981,109130.0,109120.0,0.19042445]
[1756670367420,0.72225981,109130.0,109120.0,0.21797845]
[1756670369232,0.53899215,109130.0,109120.0,0.21797845]
[1756670369664,0.72225981,109130.0,109120.0,0.21797845]
[1756670370314,0.72221981,109130.0,109120.0,0.21797845]
[1756670375072,0.72197981,109130.0,109120.0,0.21797845]
[1756670375224,0.53871215,109130.0,109120.0,0.21797845]
[1756670377122,0.53871215,109130.0,109120.0,0.21297845]
[1756670379416,0.72197981,109130.0,109120.0,0.21297845]
[1756670380878,0.53871215,109130.0,109120.0,0.21297845]
[1756670382489,0.72197981,109130.0,109120.0,0.21297845]
[1756670383246,0.72413981,109130.0,109120.0,0.21280845]
[1756670383447,0.72413981,109130.0,109120.0,0.21595845]
[1756670384305,0.72393981,109130.0,109120.0,0.21595845]
[1756670386208,0.7325314,109130.0,109120.0,0.21595845]
[1756670387041,0.7325314,109130.0,109120.0,0.21280845]
[1756670391338,0.7325314,109130.0,109120.0,0.18525445]
[1756670392089,0.72393981,109130.0,109120.0,0.18525445]
[1756670392320,0.73253259,109130.0,109120.0,0.18525445]
[1756670393139,0.7325326,109130.0,109120.0,0.18525445]
[1756670394887,0.7325326,109130.0,109120.0,0.34193445]
[1756670396351,0.75233146,109130.0,109120.0,0.34193445]
[1756670397336,0.752332,109130.0,109120.0,0.34193445]
[1756670401562,0.41214434,109130.0,109120.0,0.34500445]
[1756670401767,0.00859333,109130.0,109120.0,0.43798446]
[1756670401968,0.39018548,109130.0,109120.0,0.43798446]
[1756670402172,0.72327968,109140.0,109130.0,0.18326766]
[1756670402173,0.72144394,109140.0,109130.0,0.18326766]
[1756670402377,1.15070744,109140.0,109130.0,0.18326766]
[1756670402869,1.15070744,109140.0,109120.0,0.43601446]
[1756670402870,1.14533293,109140.0,109120.0,0.27933446]
[1756670403074,0.39074306,109140.0,109130.0,0.18326766]
[1756670403278,0.77233521,109140.0,109130.0,0.21081966]
[1756670403489,1.15392736,109140.0,109130.0,0.21081966]
[1756670404036,0.39174306,109140.0,109130.0,0.21081966]
[1756670404240,1.15492736,109140.0,109130.0,0.21081966]
[1756670405709,1.15492,109140.0,109130.0,0.23175848]
[1756670406262,0.99832,109140.0,109130.0,0.23175848]
[1756670406458,1.15504,109140.0,109130.0,0.23175848]
[1756670408271,0.3886357,109140.0,109130.0,0.23381848]
[1756670408422,0.9951,109140.0,109130.0,0.23381848]
[1756670408629,1.1519,109140.0,109130.0,0.23381848]
[1756670409441,1.15512,109140.0,109130.0,0.23175848]
[1756670410080,1.1519,109140.0,109130.0,0.23381848]
[1756670410839,1.15512,109140.0,109130.0,0.04849082]
[1756670411051,1.18233891,109140.0,109130.0,0.04849082]
[1756670411262,1.19092749,109140.0,109130.0,0.04849082]
[1756670412301,1.19092749,109140.0,109130.0,0.05078166]
[1756670412912,1.19092311,109140.0,109130.0,0.05078166]
[1756670414146,1.27921943,109140.0,109130.0,0.05078166]
[1756670415422,1.19092311,109140.0,109130.0,0.05078166]
[1756670416501,1.19092311,109140.0,109130.0,0.02322966]
[1756670416710,1.19092359,109140.0,109130.0,0.02322966]
[1756670416892,1.19736523,109140.0,109130.0,0.02322966]
[1756670420153,1.19736546,109140.0,109130.0,0.02322966]
[1756670421473,0.43418116,109140.0,109130.0,0.02322966]
[1756670421682,1.19736546,109140.0,109130.0,0.02322966]
[1756670423797,1.19737653,109140.0,109130.0,0.02322966]
[1756670424019,1.28567285,109140.0,109130.0,0.02322966]
[1756670424238,1.19737653,109140.0,109130.0,0.02322966]
[1756670424452,0.18326766,109130.0,109120.0,0.04849082]
[1756670424662,1.15386521,109130.0,109120.0,0.04849082]
[1756670424880,1.18967855,109130.0,109120.0,0.04849082]
[1756670425096,1.18967855,109130.0,109120.0,0.02093882]
[1756670425548,1.28441768,109130.0,109120.0,0.02093882]
[1756670425764,0.46049106,109130.0,109120.0,0.02093882]
[1756670425980,1.22367536,109130.0,109120.0,0.02193882]
[1756670426642,2.03824752,109130.0,109120.0,0.001]
[1756670426876,2.140336,109130.0,109120.0,0.002]
[1756670427092,2.14534079,109130.0,109120.0,0.002]
[1756670427308,2.22861584,109130.0,109120.0,0.002]
[1756670427525,2.18913484,109130.0,109120.0,0.002]
[1756670427740,1.04433498,109130.0,109120.0,0.002]
[1756670427974,2.18911143,109130.0,109120.0,0.002]
[1756670428415,2.16439671,109130.0,109120.0,0.002]
[1756670429056,0.81074425,109130.0,109120.0,0.002]
[1756670429342,2.1125607,109130.0,109120.0,0.002]
[1756670430856,2.11251232,109130.0,109120.0,0.002]
[1756670432582,0.96773587,109130.0,109120.0,0.002]
[1756670432809,2.11251232,109130.0,109120.0,0.002]
[1756670433179,2.20080864,109130.0,109120.0,0.002]
[1756670434396,2.20079224,109130.0,109120.0,0.002]
[1756670434622,2.20078665,109130.0,109120.0,0.002]
[1756670436347,2.11249033,109130.0,109120.0,0.002]
[1756670438170,1.72886818,109130.0,109120.0,0.00415]
[1756670438594,2.11046033,109130.0,109120.0,0.00415]
[1756670438813,2.11341033,109130.0,109120.0,0.002]
[1756670439622,2.11349033,109130.0,109120.0,0.002]
[1756670441107,1.95545033,109130.0,109120.0,0.002]
[1756670441333,2.11054033,109130.0,109120.0,0.00415]
[1756670441531,1.72894818,109130.0,109120.0,0.00716]
[1756670441775,1.68208093,109130.0,109120.0,0.00716]
[1756670442012,1.69921613,109130.0,109120.0,0.00415]
[1756670442274,2.1720546,109130.0,109120.0,0.002]
[1756670445290,2.14635225,109130.0,109120.0,0.002]
[1756670445498,2.17207323,109130.0,109120.0,0.002]
[1756670445901,2.08377691,109130.0,109120.0,0.002]
[1756670446111,2.08377609,109130.0,109120.0,0.002]
[1756670446536,2.10849081,109130.0,109120.0,0.002]
[1756670446919,2.08377609,109130.0,109120.0,0.002]
[1756670447074,2.06663115,109130.0,109120.0,0.002]
[1756670447277,2.17207357,109130.0,109120.0,0.002]
[1756670448409,2.19678829,109130.0,109120.0,0.002]
[1756670450637,2.19650829,109130.0,109120.0,0.002]
[1756670451251,2.10821197,109130.0,109120.0,0.002]
[1756670452101,2.10813197,109130.0,109120.0,0.002]
[1756670454329,2.14114455,109130.0,109120.0,0.002]
[1756670455876,2.11642983,109130.0,109120.0,0.002]
[1756670456546,2.11651756,109130.0,109120.0,0.002]
[1756670456981,2.20481388,109130.0,109120.0,0.002]
[1756670457435,2.20481466,109130.0,109120.0,0.002]
[1756670458007,2.25412157,109130.0,109120.0,0.002]
[1756670461418,2.25412157,109130.0,109120.0,0.00179906]
[1756670461639,2.16582525,109130.0,109120.0,0.00179906]
[1756670462459,2.16582613,109130.0,109120.0,0.00179906]
[1756670463212,1.02104968,109130.0,109120.0,0.00179906]
[1756670463443,2.16582613,109130.0,109120.0,0.00179906]
[1756670463665,2.25412245,109130.0,109120.0,0.00179906]
[1756670465479,2.28385581,109130.0,109120.0,0.00179906]
[1756670465617,1.13907936,109130.0,109120.0,0.00179906]
[1756670465977,2.26021584,109130.0,109120.0,0.00179906]
[1756670466186,2.2838535,109130.0,109120.0,0.00179906]
[1756670466394,0.97670003,109130.0,109120.0,0.00179906]
[1756670466621,2.11288079,109130.0,109120.0,0.00179906]
[1756670466825,2.12147645,109130.0,109120.0,0.00179906]
[1756670467987,2.12211645,109130.0,109120.0,0.00179906]
[1756670468198,2.21041277,109130.0,109120.0,0.00179906]
[1756670469653,2.20396603,109130.0,109120.0,0.00179906]
[1756670469877,2.21041268,109130.0,109120.0,0.00179906]
[1756670471485,2.21041254,109130.0,109120.0,0.00179906]
[1756670473336,2.21041251,109130.0,109120.0,0.00179906]
[1756670474692,2.24014587,109130.0,109120.0,0.00179906]
[1756670476521,2.28573864,109130.0,109120.0,0.00179906]
[1756670476734,3.39750251,109130.0,109120.0,0.00179906]
[1756670476940,3.34819462,109130.0,109120.0,0.00179906]
[1756670477398,3.38049708,109130.0,109120.0,0.00179906]
[1756670477629,3.54768194,109130.0,109120.0,1e-08]
[1756670477841,3.54768194,109130.0,109110.0,0.0002]
[1756670477842,0.52328445,109120.0,109110.0,0.0002]
[1756670478061,3.27555213,109120.0,109110.0,0.0002]
[1756670478280,3.40539065,109120.0,109110.0,0.0002]
[1756670478500,0.18330125,109110.0,109100.0,0.00024]
[1756670478730,2.05341181,109110.0,109100.0,0.00024]
[1756670478959,2.05945739,109110.0,109100.0,0.00024]
[1756670479177,0.56496062,109070.0,109060.0,0.0721143]
[1756670479405,0.19253305,109090.0,109070.0,0.18336847]
[1756670479614,0.58446887,109090.0,109080.0,0.00203]
[1756670479818,0.57803464,109090.0,109080.0,0.00203]
[1756670480287,0.60560064,109090.0,109080.0,0.00203]
[1756670480505,0.60560064,109090.0,109080.0,0.00250363]
[1756670480724,0.84265754,109090.0,109080.0,0.00250363]
[1756670480940,1.60584184,109090.0,109080.0,0.00250363]
[1756670481151,1.60584184,109090.0,109080.0,0.00565363]
[1756670481579,1.49570151,109090.0,109080.0,0.00565363]
[1756670481793,1.42982434,109090.0,109080.0,0.00565363]
[1756670482006,1.53996467,109090.0,109080.0,0.00665363]
[1756670482221,1.15878659,109090.0,109080.0,0.00665363]
[1756670482434,0.77678037,109090.0,109080.0,0.00665363]
[1756670482630,0.99914659,109090.0,109080.0,0.00665363]
[1756670484180,0.9905677,109090.0,109080.0,0.00665363]
[1756670484611,1.1502477,109090.0,109080.0,0.00665363]
[1756670484831,0.9905677,109090.0,109080.0,0.00665363]
[1756670485064,0.60856148,109090.0,109080.0,0.00665363]
[1756670485274,0.9905677,109090.0,109080.0,0.19000529]
[1756670485495,0.97080294,109090.0,109080.0,0.19000529]
[1756670485716,0.97080294,109090.0,109080.0,0.00665363]
[1756670486622,0.58879672,109090.0,109080.0,0.00665363]
[1756670486812,0.97080294,109090.0,109080.0,0.00665363]
[1756670487323,0.94323694,109090.0,109080.0,0.00665363]
[1756670487529,1.00582749,109090.0,109080.0,0.00665363]
[1756670487754,1.05532716,109090.0,109080.0,0.00665363]
[1756670488153,1.05532726,109090.0,109080.0,0.00665363]
[1756670488568,0.99271524,109090.0,109080.0,0.00665363]
[1756670489230,0.61070902,109090.0,109080.0,0.00665363]
[1756670489440,0.99271524,109090.0,109080.0,0.00665363]
[1756670490309,1.37672146,109090.0,109080.0,0.00350363]
[1756670490932,1.37966146,109090.0,109080.0,0.00350363]
[1756670491696,0.99765524,109090.0,109080.0,0.00350363]
[1756670491929,0.99271524,109090.0,109080.0,0.18689529]
[1756670492162,0.99271524,109090.0,109080.0,0.00669363]
[1756670493231,0.99271524,109090.0,109080.0,0.00354363]
[1756670493650,0.99271524,109090.0,109080.0,0.00669363]
[1756670493887,0.99271524,109090.0,109080.0,0.00354363]
[1756670494087,1.37672146,109090.0,109080.0,0.00366363]
[1756670494285,1.37966146,109090.0,109080.0,0.00366363]
[1756670494504,0.99765524,109090.0,109080.0,0.00366363]
[1756670495326,0.61564902,109090.0,109080.0,0.00366363]
[1756670495527,0.99765524,109090.0,109080.0,0.00366363]
[1756670495739,1.08595156,109090.0,109080.0,0.00151363]
[1756670495951,1.48770381,109090.0,109080.0,0.00151363]
[1756670498233,0.72369137,109090.0,109080.0,0.00151363]
[1756670498459,1.49628518,109090.0,109080.0,0.00151363]
[1756670499849,0.85570978,109090.0,109080.0,0.00151363]
[1756670500059,1.03907458,109090.0,109080.0,0.00151363]
[1756670500897,1.04824132,109090.0,109080.0,0.00151363]
[1756670501469,1.06800103,109090.0,109080.0,0.00151363]
[1756670501684,1.06800103,109090.0,109080.0,0.00366363]
[1756670501886,1.06800103,109090.0,109080.0,0.00151363]
[1756670502102,1.06800103,109090.0,109080.0,0.00366363]
[1756670502308,1.0744346,109090.0,109080.0,0.00366363]
[1756670503109,1.0744346,109090.0,109080.0,0.00231246]
[1756670503331,1.0744346,109090.0,109080.0,0.00016246]
[1756670503964,1.07446076,109090.0,109080.0,0.00016246]
[1756670507292,0.29639778,109090.0,109080.0,0.02325128]
[1756670507493,0.62891741,109090.0,109080.0,0.18704128]
[1756670508104,0.62883537,109090.0,109080.0,0.18704128]
[1756670508525,0.62883537,109090.0,109080.0,0.37039294]
[1756670509165,0.62883494,109090.0,109080.0,0.37039294]
[1756670509590,0.62023936,109090.0,109080.0,0.18389128]
[1756670509811,0.63083508,109090.0,109080.0,0.18389128]
[1756670511846,0.63391508,109090.0,109080.0,0.18389128]
[1756670512291,0.63391508,109090.0,109080.0,0.18397128]
[1756670512624,0.63391493,109090.0,109080.0,0.18397128]
[1756670513064,0.25197767,109090.0,109080.0,0.18397128]
[1756670513271,0.63391493,109090.0,109080.0,0.18397128]
[1756670513686,0.25197767,109090.0,109080.0,0.18397128]
[1756670513893,0.63391493,109090.0,109080.0,0.18397128]
[1756670516263,0.63391454,109090.0,109080.0,0.18397128]
[1756670516471,0.63391436,109090.0,109080.0,0.18397128]
[1756670518896,1.1300362,109090.0,109080.0,0.18166128]
[1756670519121,0.39086724,109090.0,109080.0,0.00016246]
[1756670519350,1.15474176,109090.0,109080.0,0.00016246]
[1756670519593,1.31546176,109090.0,109080.0,0.00016246]
[1756670519800,1.30686401,109090.0,109080.0,0.00016246]
[1756670520037,1.31545752,109090.0,109080.0,0.00016246]
[1756670520927,1.31545738,109090.0,109080.0,0.00016246]
[1756670521144,0.86883521,109090.0,109080.0,0.00016246]
[1756670521578,0.70811521,109090.0,109080.0,0.00016246]
[1756670523581,0.86911521,109090.0,109080.0,0.00016246]
[1756670524034,0.86911495,109090.0,109080.0,0.00016246]
[1756670524677,0.70811495,109090.0,109080.0,0.00232246]
[1756670524933,0.70811495,109090.0,109080.0,0.00016246]
[1756670525152,0.6710093,109090.0,109080.0,0.00016246]
[1756670525377,0.6710093,109090.0,109080.0,0.00232246]
[1756670526019,0.67100927,109090.0,109080.0,0.00232246]
[1756670526645,0.6824687,109090.0,109080.0,0.00232246]
[1756670527080,0.68251026,109090.0,109080.0,0.00232246]
[1756670528629,0.68251026,109090.0,109080.0,0.00016246]
[1756670529041,1.06444752,109090.0,109080.0,0.00016246]
[1756670529457,1.03221933,109090.0,109080.0,0.00016246]
[1756670529668,1.06444904,109090.0,109080.0,0.00016246]
[1756670530117,1.06444909,109090.0,109080.0,0.00016246]
[1756670530517,1.0644491,109090.0,109080.0,0.00016246]
[1756670531092,0.68251184,109090.0,109080.0,0.00016246]
[1756670533145,0.68251143,109090.0,109080.0,0.00016246]
[1756670535991,0.70726302,109090.0,109080.0,0.00016246]
[1756670536811,0.70726302,109090.0,109080.0,0.18567412]
[1756670537045,0.70418302,109090.0,109080.0,0.18567412]
[1756670537271,0.67743143,109090.0,109080.0,0.18567412]
[1756670538095,0.67940143,109090.0,109080.0,0.18567412]
[1756670538303,0.45047732,109090.0,109080.0,0.00232246]
[1756670538503,0.63384212,109090.0,109080.0,0.00461435]
[1756670539287,0.25190486,109090.0,109080.0,0.18796601]
[1756670539446,0.25190486,109090.0,109080.0,0.18567412]
[1756670539662,0.63384212,109090.0,109080.0,0.18567412]
[1756670540092,0.61665319,109090.0,109080.0,0.18567412]
[1756670540334,0.6338429,109090.0,109080.0,0.18567412]
[1756670541229,0.63384281,109090.0,109080.0,0.18567412]
[1756670542267,0.25190555,109090.0,109080.0,0.18567412]
[1756670542497,0.24682561,109090.0,109080.0,0.20955294]
[1756670542713,0.62876287,109090.0,109080.0,0.20955294]
[1756670543142,0.62876287,109090.0,109080.0,0.20661294]
[1756670544072,0.63084287,109090.0,109080.0,0.20661294]
[1756670544707,0.24890561,109090.0,109080.0,0.20661294]
[1756670544915,0.63084287,109090.0,109080.0,0.20661294]
[1756670546401,0.63390287,109090.0,109080.0,0.20661294]
[1756670551153,0.63389759,109090.0,109080.0,0.20661294]
[1756670552150,1.01588025,109090.0,109080.0,0.20661294]
[1756670556637,0.05202602,109090.0,109080.0,0.29959295]
[1756670556856,0.39914652,109090.0,109080.0,0.30253295]
[1756670557076,0.39914652,109090.0,109080.0,0.33009395]
[1756670557514,0.01718655,109090.0,109080.0,0.33009395]
[1756670557719,0.39914652,109090.0,109080.0,0.32715395]
[1756670558337,0.01718655,109090.0,109080.0,0.32715395]
[1756670558548,0.39914652,109090.0,109080.0,0.32715395]
[1756670560828,0.40122652,109090.0,109080.0,0.32715395]
[1756670561478,0.40428652,109090.0,109080.0,0.48799395]
[1756670562095,0.40427755,109090.0,109080.0,0.48799395]
[1756670562309,0.40121755,109090.0,109080.0,0.48799395]
[1756670562687,0.40121755,109090.0,109080.0,0.32715395]
[1756670562895,0.40121755,109090.0,109080.0,0.48799395]
[1756670563140,0.40427755,109090.0,109080.0,0.48799395]
[1756670563367,0.40427755,109090.0,109080.0,0.32715395]
[1756670563577,0.40121755,109090.0,109080.0,0.48803395]
[1756670564005,0.01925758,109090.0,109080.0,0.48803395]
[1756670564228,0.39913755,109090.0,109080.0,0.49097395]
[1756670564880,0.38195997,109090.0,109080.0,0.49097395]
[1756670565831,0.57941288,109100.0,109090.0,0.18333486]
[1756670566045,0.63348725,109100.0,109090.0,0.18333486]
[1756670567073,1.01544722,109100.0,109090.0,0.18433486]
[1756670567484,1.0090059,109100.0,109090.0,0.18433486]
[1756670568202,0.82568669,109100.0,109090.0,0.18433486]
[1756670568398,1.00900474,109100.0,109090.0,0.18433486]
[1756670569250,0.82568669,109100.0,109090.0,0.18433486]
[1756670570884,1.00900474,109100.0,109090.0,0.18433486]
[1756670571549,1.00900474,109100.0,109090.0,0.20743368]
[1756670571550,0.06176675,109100.0,109090.0,0.20743368]
[1756670571776,0.7810968,109100.0,109090.0,0.30344369]
[1756670571984,0.7810968,109100.0,109090.0,0.33100369]
[1756670572834,0.01717686,109100.0,109090.0,0.33100369]
[1756670573048,0.35789549,109110.0,109100.0,0.18331805]
[1756670573238,0.25150668,109110.0,109100.0,0.34379805]
[1756670573710,0.06820269,109110.0,109100.0,0.36689687]
[1756670573926,0.03339476,109110.0,109100.0,0.36689687]
[1756670574153,0.03339476,109110.0,109100.0,0.39445487]
[1756670574374,0.41635473,109110.0,109100.0,0.39445487]
[1756670575235,0.41735473,109110.0,109100.0,0.39445487]
[1756670575467,0.40018421,109110.0,109100.0,0.36689687]
[1756670575655,0.39918421,109110.0,109100.0,0.39445487]
[1756670575909,0.39818421,109110.0,109100.0,0.39445487]
[1756670577675,0.39302421,109110.0,109100.0,0.39748487]
[1756670577881,0.39302421,109110.0,109100.0,0.39848487]
[1756670578110,0.39302421,109110.0,109100.0,0.39545487]
[1756670578315,0.39302421,109110.0,109100.0,0.39645487]
[1756670578509,0.39509421,109110.0,109100.0,0.39645487]
[1756670579717,0.39302421,109110.0,109100.0,0.39645487]
[1756670580552,0.39818421,109110.0,109100.0,0.39645487]
[1756670580986,0.38504997,109120.0,109110.0,0.18330125]
[1756670581195,1.00867804,109120.0,109110.0,0.18330125]
[1756670582461,0.98891441,109120.0,109110.0,0.18330125]
[1756670582671,0.80562996,109120.0,109110.0,0.18330125]
[1756670583299,0.01715293,109120.0,109110.0,0.29938008]
[1756670583521,0.00309,109130.0,109120.0,0.20422327]
[1756670583736,0.38504997,109130.0,109120.0,0.45704328]
[1756670583982,0.38504997,109140.0,109130.0,0.18326766]
[1756670584206,0.80540235,109140.0,109130.0,0.18326766]
[1756670584419,0.79682513,109140.0,109130.0,0.18326766]
[1756670584630,0.78670801,109140.0,109130.0,0.18326766]
[1756670585935,0.40438197,109140.0,109130.0,0.18326766]
[1756670587407,0.41294731,109140.0,109130.0,0.18326766]
[1756670588241,0.41294731,109140.0,109130.0,0.18542766]
[1756670588855,0.59619818,109140.0,109130.0,0.18542766]
[1756670589499,0.59619818,109140.0,109130.0,0.18326766]
[1756670589875,0.21460428,109140.0,109130.0,0.18326766]
[1756670590252,0.59619818,109140.0,109130.0,0.18326766]
[1756670590507,0.97779208,109140.0,109130.0,0.18326766]
[1756670591544,0.21460428,109140.0,109130.0,0.18326766]
[1756670591732,0.97779208,109140.0,109130.0,0.18326766]
[1756670592788,0.97779208,109140.0,109130.0,0.21081766]
[1756670592992,0.97779208,109140.0,109130.0,0.18326766]
[1756670593399,0.97775251,109140.0,109130.0,0.18326766]
[1756670593607,0.97775251,109140.0,109130.0,0.15928]
[1756670593813,0.99747449,109140.0,109130.0,0.3448385]
[1756670594020,0.99747449,109140.0,109120.0,0.39523428]
[1756670594194,0.61588059,109140.0,109130.0,0.1592]
[1756670594407,0.99747449,109140.0,109130.0,0.1592]
[1756670594970,0.99747449,109140.0,109130.0,0.34246766]
[1756670596713,0.99747449,109140.0,109130.0,0.1592]
[1756670597458,1.00389594,109140.0,109130.0,0.1592]
[1756670598913,1.00389594,109140.0,109130.0,0.34246766]
[1756670600438,1.00390385,109140.0,109130.0,0.34246766]
[1756670603964,0.98678371,109140.0,109130.0,0.34246766]
[1756670604160,1.00394822,109140.0,109130.0,0.34246766]
[1756670606151,1.00394822,109140.0,109130.0,0.34346766]
[1756670607044,1.00394822,109140.0,109130.0,0.1602]
[1756670607219,1.02868395,109140.0,109130.0,0.34546766]
[1756670608002,1.41049136,109140.0,109130.0,0.34546766]
[1756670614762,1.39334259,109140.0,109130.0,0.34546766]
[1756670614988,0.26558302,109140.0,109130.0,0.34546766]
[1756670615192,0.26558302,109140.0,109130.0,0.34746766]
[1756670615396,1.41057823,109140.0,109130.0,0.34746766]
[1756670616316,1.41057823,109140.0,109130.0,0.34546766]
[1756670618890,1.41057823,109140.0,109130.0,0.34746766]
[1756670619683,1.02891316,109140.0,109130.0,0.34746766]
[1756670619896,0.81576656,109140.0,109130.0,0.46138649]
[1756670620106,0.81576656,109140.0,109130.0,0.46433649]
[1756670620531,0.81576656,109140.0,109130.0,0.46138649]
[1756670621807,0.81576656,109140.0,109130.0,0.46433649]
[1756670622009,0.81576045,109140.0,109130.0,0.46433649]
[1756670622363,0.81576045,109140.0,109130.0,0.46138649]
[1756670623404,0.80931351,109140.0,109130.0,0.46138649]
[1756670624810,0.81128351,109140.0,109130.0,0.46138649]
[1756670625031,0.81128351,109140.0,109130.0,0.50262578]
[1756670625232,0.79156153,109140.0,109130.0,0.50262578]
[1756670625698,0.79155268,109140.0,109130.0,0.50262578]
[1756670625915,0.97786355,109140.0,109130.0,0.50262578]
[1756670626348,0.79461268,109140.0,109130.0,0.50262578]
[1756670628139,0.77742674,109140.0,109130.0,0.50262578]
[1756670628335,0.76577377,109140.0,109130.0,0.50262578]
[1756670628551,0.76380377,109140.0,109130.0,0.50262578]
[1756670629165,0.77239574,109140.0,109130.0,0.50262578]
[1756670629576,0.76380377,109140.0,109130.0,0.50262578]
[1756670630013,0.77239563,109140.0,109130.0,0.50262578]
[1756670630362,0.76380377,109140.0,109130.0,0.50262578]
[1756670630574,0.77239424,109140.0,109130.0,0.50262578]
[1756670631646,0.77450424,109140.0,109130.0,0.50262578]
[1756670632890,0.77761424,109140.0,109130.0,0.50262578]
[1756670633321,0.77450424,109140.0,109130.0,0.50262578]
[1756670633530,0.76380377,109140.0,109130.0,0.50565578]
[1756670635114,0.76380377,109140.0,109130.0,0.50265578]
[1756670635498,0.76380377,109140.0,109130.0,0.50365578]
[1756670635630,0.76380377,109140.0,109130.0,0.50265578]
[1756670637121,0.76380377,109140.0,109130.0,0.50465578]
[1756670637787,0.76380377,109140.0,109130.0,0.50565578]
[1756670639425,0.76380377,109140.0,109130.0,0.50262578]
[1756670640074,0.3821387,109140.0,109130.0,0.50262578]
[1756670640267,0.76380377,109140.0,109130.0,0.50262578]
[1756670640472,0.00047363,109140.0,109130.0,0.50262578]
[1756670640686,0.3821387,109140.0,109130.0,0.50565578]
[1756670641062,0.3821387,109140.0,109130.0,0.53320278]
[1756670641713,0.00047363,109140.0,109130.0,0.53320278]
[1756670641916,0.3821387,109140.0,109130.0,0.53320278]
[1756670644408,0.01419898,109150.0,109130.0,0.53320278]
[1756670644656,0.03996149,109150.0,109140.0,0.29946033]
[1756670644843,0.03996149,109150.0,109140.0,0.2971697]
[1756670645057,0.04207149,109150.0,109140.0,0.2993297]
[1756670645634,0.42373656,109150.0,109140.0,0.2993297]
[1756670646260,0.04207149,109150.0,109140.0,0.2993297]
[1756670646470,0.42373656,109150.0,109140.0,0.2971697]
[1756670647321,0.42373656,109150.0,109140.0,0.2981697]
[1756670648357,0.40656155,109150.0,109140.0,0.2981697]
[1756670648518,0.42373989,109150.0,109140.0,0.2981697]
[1756670650835,0.42373989,109150.0,109140.0,0.4558097]
[1756670654090,0.42373989,109150.0,109140.0,0.4579697]
[1756670657352,0.04207482,109150.0,109140.0,0.4579697]
[1756670657563,0.42373989,109150.0,109140.0,0.4579697]
[1756670658342,0.04207482,109150.0,109140.0,0.4579697]
[1756670658541,0.42373989,109150.0,109140.0,0.4579697]
[1756670659132,0.4237311,109150.0,109140.0,0.4579697]
[1756670659662,0.42373022,109150.0,109140.0,0.4579697]
[1756670660155,0.04206517,109150.0,109140.0,0.4579697]
[1756670660315,0.42373024,109150.0,109140.0,0.4579697]
[1756670661873,0.42373024,109150.0,109140.0,0.4557697]
[1756670663648,0.42062024,109150.0,109140.0,0.4578497]
[1756670664268,0.42381024,109150.0,109140.0,0.4578497]
[1756670667437,0.44359929,109150.0,109140.0,0.4578497]
[1756670667643,0.44359929,109150.0,109140.0,0.2981697]
[1756670667850,0.44359929,109150.0,109140.0,0.4832767]
[1756670668472,0.82526436,109150.0,109140.0,0.4832767]
[1756670668989,0.44359929,109150.0,109140.0,0.4832767]
[1756670669854,0.06193422,109150.0,109140.0,0.4832767]
[1756670670064,0.44361767,109150.0,109140.0,0.4832767]
[1756670670556,0.4436177,109150.0,109140.0,0.4832767]